[Event "Open Nuevo Centro. Jornada 2"]
[Site "Chess.com"]
[Date "2020.06.26"]
[Round "2"]
[White "Castellano López, Javier"]
[Black "Sanchez Saez, Francisco"]
[Result "0-1"]
[WhiteElo "1777"]
[BlackElo "2287"]
[TimeControl "180+2"]
[EndTime "10:50:58 PDT"]
[Termination "Victoria de Pacman1995 por tiempo"]

1. d4 {[%clk 0:03:01.9]} 1... Nf6 {[%clk 0:02:57.1]} 2. c4 {[%clk 0:03:02.4]}
2... c5 {[%clk 0:02:56.7]} 3. d5 {[%clk 0:03:02.2]} 3... e6 {[%clk 0:02:54.4]}
4. Nc3 {[%clk 0:03:02.5]} 4... exd5 {[%clk 0:02:55.5]} 5. cxd5 {[%clk
0:03:04.4]} 5... d6 {[%clk 0:02:56.2]} 6. e4 {[%clk 0:03:04.3]} 6... g6 {[%clk
0:02:57.1]} 7. Nf3 {[%clk 0:03:04.3]} 7... Bg7 {[%clk 0:02:58.2]} 8. Bd3 {[%clk
0:03:05.1]} 8... a6 {[%clk 0:02:59.3]} 9. a4 {[%clk 0:03:05.3]} 9... Bg4 {[%clk
0:02:52.5]} 10. h3 {[%clk 0:03:05.5]} 10... Bxf3 {[%clk 0:02:53.6]} 11. Qxf3
{[%clk 0:03:07.1]} 11... Nbd7 {[%clk 0:02:55.1]} 12. O-O {[%clk 0:03:05.8]}
12... Ne5 {[%clk 0:02:55.4]} 13. Qe2 {[%clk 0:03:07.3]} 13... O-O {[%clk
0:02:53.5]} 14. Bg5 {[%clk 0:03:04]} 14... h6 {[%clk 0:02:52.4]} 15. Bh4 {[%clk
0:03:03.5]} 15... Re8 {[%clk 0:02:46.1]} 16. Rfe1 {[%clk 0:02:58.5]} 16... Qc7
{[%clk 0:01:59.4]} 17. Qc2 {[%clk 0:02:52.3]} 17... Nxd3 {[%clk 0:01:56.1]} 18.
Qxd3 {[%clk 0:02:54.2]} 18... Nd7 {[%clk 0:01:57.3]} 19. Bg3 {[%clk 0:02:39.1]}
19... Ne5 {[%clk 0:01:55.9]} 20. Qc2 {[%clk 0:02:32.5]} 20... c4 {[%clk
0:01:54.1]} 21. Bxe5 {[%clk 0:02:07.4]} 21... Bxe5 {[%clk 0:01:56]} 22. Rac1
{[%clk 0:02:03.9]} 22... Rec8 {[%clk 0:01:46.5]} 23. Qd2 {[%clk 0:02:00.8]}
23... Kh7 {[%clk 0:01:46]} 24. f4 {[%clk 0:02:00.4]} 24... Bg7 {[%clk
0:01:40.4]} 25. Qe3 {[%clk 0:01:43.4]} 25... Rab8 {[%clk 0:01:34.1]} 26. e5
{[%clk 0:01:35.2]} 26... dxe5 {[%clk 0:01:19]} 27. fxe5 {[%clk 0:01:37.1]} 27...
Re8 {[%clk 0:01:19.7]} 28. d6 {[%clk 0:01:31.7]} 28... Qd7 {[%clk 0:01:09.8]}
29. Qc5 {[%clk 0:01:07]} 29... Rbc8 {[%clk 0:01:03.3]} 30. Qd5 {[%clk
0:01:07.5]} 30... b6 {[%clk 0:00:57.8]} 31. Rf1 {[%clk 0:00:31.7]} 31... Re6
{[%clk 0:00:49.8]} 32. Ne4 {[%clk 0:00:16.5]} 32... Rxe5 {[%clk 0:00:47.3]} 33.
Rxf7 {[%clk 0:00:16.7]} 33... Rxd5 {[%clk 0:00:18]} 34. Rxd7 {[%clk 0:00:17.6]}
34... Kg8 {[%clk 0:00:18.1]} 35. Re1 {[%clk 0:00:15.4]} 35... Bxb2 {[%clk
0:00:17.9]} 36. Ng3 {[%clk 0:00:10.8]} 36... Bd4+ {[%clk 0:00:17.1]} 37. Kh1
{[%clk 0:00:10.7]} 37... Be5 {[%clk 0:00:17.8]} 38. Ne4 {[%clk 0:00:08.8]} 38...
c3 {[%clk 0:00:17.9]} 39. Rc1 {[%clk 0:00:04.6]} 39... c2 {[%clk 0:00:18.8]} 40.
g3 {[%clk 0:00:04.1]} 40... Rd1+ {[%clk 0:00:18.7]} 0

[Event "Open Nuevo Centro. Jornada 2"]
[Site "Chess.com"]
[Date "2020.06.26"]
[Round "2"]
[White "Conejero Martínez, Víctor"]
[Black "Torres Biosca, Roberto"]
[Result "1-0"]
[WhiteElo "1205"]
[BlackElo "650"]
[TimeControl "180+2"]
[EndTime "10:50:59 PDT"]
[Termination "Victoria de Camelocota20 por jaque mate"]

1. d4 {[%clk 0:03:01.9]} 1... d5 {[%clk 0:03:00]} 2. c4 {[%clk 0:03:01.7]} 2...
dxc4 {[%clk 0:02:58.7]} 3. e3 {[%clk 0:02:58.9]} 3... Nf6 {[%clk 0:02:55.9]} 4.
Bxc4 {[%clk 0:02:58.3]} 4... g6 {[%clk 0:02:51.8]} 5. Nf3 {[%clk 0:02:57.6]}
5... Nc6 {[%clk 0:02:52.1]} 6. O-O {[%clk 0:02:57.2]} 6... Bg7 {[%clk 0:02:52]}
7. Nc3 {[%clk 0:02:55.9]} 7... O-O {[%clk 0:02:49.8]} 8. Re1 {[%clk 0:02:42.7]}
8... Qe8 {[%clk 0:02:50]} 9. e4 {[%clk 0:02:34.6]} 9... Bg4 {[%clk 0:02:46.6]}
10. h3 {[%clk 0:02:28.8]} 10... Bxf3 {[%clk 0:02:46.2]} 11. Qxf3 {[%clk
0:02:28.1]} 11... Nxd4 {[%clk 0:02:42]} 12. Qd1 {[%clk 0:02:20.3]} 12... Nc6
{[%clk 0:02:36.6]} 13. Nb5 {[%clk 0:02:07.7]} 13... Rd8 {[%clk 0:02:36.4]} 14.
Qb3 {[%clk 0:01:48.6]} 14... Na5 {[%clk 0:02:32.1]} 15. Qb4 {[%clk 0:01:39.2]}
15... b6 {[%clk 0:02:31.4]} 16. Nxc7 {[%clk 0:01:37.7]} 16... Qd7 {[%clk
0:02:26.4]} 17. Nb5 {[%clk 0:01:23.2]} 17... Rc8 {[%clk 0:02:10.7]} 18. Na3
{[%clk 0:00:49.9]} 18... Rc7 {[%clk 0:01:59.9]} 19. Bf4 {[%clk 0:00:46.8]} 19...
Rc6 {[%clk 0:01:58.1]} 20. Bb5 {[%clk 0:00:45.1]} 20... Ne8 {[%clk 0:01:40.5]}
21. Bxc6 {[%clk 0:00:43.5]} 21... Qxc6 {[%clk 0:01:40.5]} 22. Qxe7 {[%clk
0:00:38.3]} 22... Qc7 {[%clk 0:01:36.1]} 23. Bxc7 {[%clk 0:00:38]} 23... Nb7
{[%clk 0:01:34.6]} 24. Rad1 {[%clk 0:00:33.7]} 24... Nxc7 {[%clk 0:01:25]} 25.
Qxc7 {[%clk 0:00:32.6]} 25... Be5 {[%clk 0:01:14.7]} 26. Qxb7 {[%clk 0:00:32]}
26... Bf6 {[%clk 0:01:10.6]} 27. Qxa7 {[%clk 0:00:27.4]} 27... h6 {[%clk
0:01:10.4]} 28. Qxb6 {[%clk 0:00:27.8]} 28... Be7 {[%clk 0:01:09.6]} 29. Qb7
{[%clk 0:00:28.3]} 29... Bd8 {[%clk 0:01:08.8]} 30. Qd5 {[%clk 0:00:24.2]} 30...
Be7 {[%clk 0:01:06.2]} 31. Qd2 {[%clk 0:00:23.8]} 31... Kh7 {[%clk 0:01:03.8]}
32. Qd7 {[%clk 0:00:21.9]} 32... Bf6 {[%clk 0:01:02.5]} 33. Rb1 {[%clk
0:00:22.3]} 33... Kg7 {[%clk 0:01:02.5]} 34. b4 {[%clk 0:00:23.3]} 34... h5
{[%clk 0:01:02.6]} 35. b5 {[%clk 0:00:24.2]} 35... Kh7 {[%clk 0:01:00.8]} 36. b6
{[%clk 0:00:25.3]} 36... Kh6 {[%clk 0:01:01.8]} 37. b7 {[%clk 0:00:26]} 37...
Be5 {[%clk 0:00:56.2]} 38. Qd5 {[%clk 0:00:25.4]} 38... Bf6 {[%clk 0:00:49.1]}
39. b8=Q {[%clk 0:00:24.5]} 39... Rxb8 {[%clk 0:00:47.5]} 40. Rxb8 {[%clk
0:00:26]} 40... Bc3 {[%clk 0:00:46.1]} 41. Rh8+ {[%clk 0:00:26]} 41... Kg7
{[%clk 0:00:45.2]} 42. Rh7+ {[%clk 0:00:23.6]} 42... Kxh7 {[%clk 0:00:44.4]} 43.
Qxf7+ {[%clk 0:00:24.6]} 43... Kh6 {[%clk 0:00:45.2]} 44. Rd1 {[%clk 0:00:25.2]}
44... Ba5 {[%clk 0:00:37.1]} 45. Rd6 {[%clk 0:00:23.7]} 45... Kg5 {[%clk
0:00:35]} 46. Qxg6+ {[%clk 0:00:24.4]} 46... Kh4 {[%clk 0:00:35.2]} 47. Qf6#
{[%clk 0:00:23.2]} 1

[Event "Open Nuevo Centro. Jornada 2"]
[Site "Chess.com"]
[Date "2020.06.26"]
[Round "2"]
[White "Campos Gambuti, Luis María"]
[Black "Hassomal Daswani, Birjkumar"]
[Result "1-0"]
[WhiteElo "2415"]
[BlackElo "1846"]
[TimeControl "180+2"]
[EndTime "10:51:06 PDT"]
[Termination "Victoria de Tangalangafacv por abandono"]

1. d4 {[%clk 0:03:01.9]} 1... Nf6 {[%clk 0:02:59.1]} 2. Nc3 {[%clk 0:03:03.8]}
2... g6 {[%clk 0:02:56.7]} 3. e4 {[%clk 0:03:03.4]} 3... d6 {[%clk 0:02:56.9]}
4. Bg5 {[%clk 0:03:03.2]} 4... Bg7 {[%clk 0:02:56]} 5. e5 {[%clk 0:03:03.9]}
5... Nfd7 {[%clk 0:02:51.5]} 6. f4 {[%clk 0:03:04]} 6... O-O {[%clk 0:02:51.7]}
7. Bh4 {[%clk 0:03:04]} 7... c5 {[%clk 0:02:47.9]} 8. exd6 {[%clk 0:03:04]} 8...
Nf6 {[%clk 0:02:43.3]} 9. dxc5 {[%clk 0:03:02.8]} 9... exd6 {[%clk 0:02:42.9]}
10. Qxd6 {[%clk 0:03:02.7]} 10... Re8+ {[%clk 0:02:38.8]} 11. Be2 {[%clk
0:02:58.3]} 11... Nbd7 {[%clk 0:02:31.9]} 12. O-O-O {[%clk 0:02:47.7]} 12... Bf8
{[%clk 0:02:30.5]} 13. Qd4 {[%clk 0:01:37.2]} 13... Bxc5 {[%clk 0:02:26.9]} 14.
Qxc5 {[%clk 0:01:38.1]} 14... Nxc5 {[%clk 0:02:20.7]} 15. Rxd8 {[%clk
0:01:37.9]} 15... Rxd8 {[%clk 0:02:21.2]} 16. Bxf6 {[%clk 0:01:39.3]} 16... Re8
{[%clk 0:02:21.4]} 17. Nf3 {[%clk 0:01:38.2]} 17... Bg4 {[%clk 0:02:19.2]} 18.
Bb5 {[%clk 0:01:31.5]} 18... Rec8 {[%clk 0:02:15.7]} 19. Re1 {[%clk 0:01:26.6]}
19... a6 {[%clk 0:02:15.9]} 20. Ba4 {[%clk 0:01:23.2]} 20... Bf5 {[%clk
0:02:11.1]} 21. Bb3 {[%clk 0:01:22.2]} 21... Nxb3+ {[%clk 0:02:09.8]} 22. axb3
{[%clk 0:01:24.1]} 22... b5 {[%clk 0:02:10.6]} 23. Nd4 {[%clk 0:01:24.1]} 23...
Bd7 {[%clk 0:02:06.2]} 24. Nd5 {[%clk 0:01:24.2]} 24... Re8 {[%clk 0:02:01.4]}
25. Re7 {[%clk 0:01:23.4]} 25... Be6 {[%clk 0:01:52.8]} 26. Nc7 {[%clk
0:01:15.3]} 26... Rxe7 {[%clk 0:01:49.9]} 27. Bxe7 {[%clk 0:01:16.2]} 27... Rc8
{[%clk 0:01:49.6]} 28. Ncxe6 {[%clk 0:01:14.8]} 28... fxe6 {[%clk 0:01:48.3]}
29. Bf6 {[%clk 0:01:16.7]} 29... Kf7 {[%clk 0:01:47.4]} 30. Be5 {[%clk
0:01:18.6]} 30... h6 {[%clk 0:01:45.1]} 31. Kd2 {[%clk 0:01:20.5]} 31... Rd8
{[%clk 0:01:45.6]} 32. g3 {[%clk 0:01:21]} 32... Rd7 {[%clk 0:01:44]} 33. h4
{[%clk 0:01:22]} 33... Rb7 {[%clk 0:01:44.4]} 34. Kd3 {[%clk 0:01:21.5]} 34...
a5 {[%clk 0:01:43.4]} 35. c3 {[%clk 0:01:21.7]} 35... Rb6 {[%clk 0:01:42.4]} 36.
Nc2 {[%clk 0:01:20.1]} 36... Ke7 {[%clk 0:01:40.7]} 37. c4 {[%clk 0:01:21.1]}
37... b4 {[%clk 0:01:38.6]} 38. Nd4 {[%clk 0:01:21.3]} 38... Rb7 {[%clk
0:01:35.5]} 39. c5 {[%clk 0:01:22.1]} 39... a4 {[%clk 0:01:32]} 40. bxa4 {[%clk
0:01:22.4]} 40... Kd8 {[%clk 0:01:28.6]} 41. b3 {[%clk 0:01:23]} 41... Rd7
{[%clk 0:01:22.1]} 42. Kc4 {[%clk 0:01:24.9]} 42... Ke7 {[%clk 0:01:22.1]} 43.
Nxe6 {[%clk 0:01:26.8]} 43... Kxe6 {[%clk 0:01:22.7]} 44. c6 {[%clk 0:01:21.2]}
44... Rd8 {[%clk 0:01:20.1]} 45. c7 {[%clk 0:01:21.7]} 45... Rf8 {[%clk
0:01:12.9]} 46. Kxb4 {[%clk 0:01:21.4]} 46... Kd7 {[%clk 0:01:11.8]} 47. Kc4
{[%clk 0:01:18.9]} 47... g5 {[%clk 0:01:09.9]} 48. hxg5 {[%clk 0:01:18.7]} 48...
hxg5 {[%clk 0:01:10.6]} 49. fxg5 {[%clk 0:01:19.3]} 49... Rf5 {[%clk 0:01:08.4]}
50. Bf4 {[%clk 0:01:19.8]} 50... Kc8 {[%clk 0:01:04]} 51. b4 {[%clk 0:01:20.3]}
51... Kb7 {[%clk 0:01:04.1]} 52. a5 {[%clk 0:01:20.7]} 52... Rf8 {[%clk
0:00:55.3]} 53. g6 {[%clk 0:01:18.8]} 53... Rg8 {[%clk 0:00:55]} 54. b5 {[%clk
0:01:11.2]} 54... Rxg6 {[%clk 0:00:53.3]} 55. a6+ {[%clk 0:01:12.6]} 55... Kc8
{[%clk 0:00:51.5]} 56. Kc5 {[%clk 0:01:14.1]} 1

[Event "Open Nuevo Centro. Jornada 2"]
[Site "Chess.com"]
[Date "2020.06.26"]
[Round "2"]
[White "García Oviedo, Alejandro"]
[Black "Chernikov, Vladimir"]
[Result "1-0"]
[WhiteElo "1851"]
[BlackElo "2288"]
[TimeControl "180+2"]
[EndTime "10:51:58 PDT"]
[Termination "Victoria de alexgarov por tiempo"]

1. e4 {[%clk 0:03:01.8]} 1... c5 {[%clk 0:02:59.7]} 2. Nf3 {[%clk 0:02:59.6]}
2... Nc6 {[%clk 0:02:57.7]} 3. g3 {[%clk 0:02:55.2]} 3... e5 {[%clk 0:02:55.8]}
4. Bg2 {[%clk 0:02:55.5]} 4... g6 {[%clk 0:02:52.5]} 5. d3 {[%clk 0:02:57.4]}
5... Bg7 {[%clk 0:02:53.4]} 6. O-O {[%clk 0:02:58.4]} 6... Nge7 {[%clk
0:02:54.4]} 7. Nc3 {[%clk 0:02:58.9]} 7... O-O {[%clk 0:02:54.2]} 8. Nd2 {[%clk
0:02:54.3]} 8... d6 {[%clk 0:02:52.6]} 9. f4 {[%clk 0:02:44.8]} 9... exf4 {[%clk
0:02:43.6]} 10. gxf4 {[%clk 0:02:44]} 10... f5 {[%clk 0:02:40.8]} 11. Nf3 {[%clk
0:02:40.4]} 11... h6 {[%clk 0:02:35.5]} 12. Kh1 {[%clk 0:02:21.5]} 12... Nd4
{[%clk 0:02:34.7]} 13. Nxd4 {[%clk 0:02:16.7]} 13... Bxd4 {[%clk 0:02:33.4]} 14.
Ne2 {[%clk 0:02:13.1]} 14... Bg7 {[%clk 0:02:32.7]} 15. c3 {[%clk 0:02:14.5]}
15... d5 {[%clk 0:02:29.8]} 16. e5 {[%clk 0:02:10]} 16... Be6 {[%clk 0:02:21.1]}
17. Rg1 {[%clk 0:02:03.7]} 17... Kh7 {[%clk 0:02:20.8]} 18. Qe1 {[%clk
0:02:00.4]} 18... d4 {[%clk 0:02:17.1]} 19. c4 {[%clk 0:01:51.5]} 19... b5
{[%clk 0:02:13]} 20. b3 {[%clk 0:01:51.1]} 20... bxc4 {[%clk 0:02:08.8]} 21.
bxc4 {[%clk 0:01:53]} 21... Rb8 {[%clk 0:02:09.9]} 22. Qg3 {[%clk 0:01:38]}
22... Qe8 {[%clk 0:02:02.5]} 23. Ba3 {[%clk 0:01:36]} 23... Rc8 {[%clk
0:01:56.3]} 24. Rab1 {[%clk 0:01:24]} 24... Qa4 {[%clk 0:01:52.6]} 25. Rb3
{[%clk 0:01:13.9]} 25... Bd7 {[%clk 0:01:42.4]} 26. Bf3 {[%clk 0:00:54.7]} 26...
Bc6 {[%clk 0:01:40.6]} 27. h4 {[%clk 0:00:53]} 27... Bxf3+ {[%clk 0:01:36.4]}
28. Qxf3 {[%clk 0:00:54.9]} 28... Qa5 {[%clk 0:00:47.2]} 29. Qg2 {[%clk
0:00:38.3]} 29... Qd2 {[%clk 0:00:33.7]} 30. Rb7 {[%clk 0:00:33.7]} 30... Rf7
{[%clk 0:00:22.5]} 31. e6 {[%clk 0:00:34.2]} 31... Rf6 {[%clk 0:00:08.4]} 32.
Rxe7 {[%clk 0:00:34.4]} 32... Qxa2 {[%clk 0:00:09.1]} 33. Rxa7 {[%clk
0:00:28.3]} 33... Qc2 {[%clk 0:00:08.2]} 34. h5 {[%clk 0:00:24.1]} 34... Rxe6
{[%clk 0:00:08.3]} 35. hxg6+ {[%clk 0:00:13.5]} 35... Kh8 {[%clk 0:00:08.5]} 36.
Bxc5 {[%clk 0:00:14.8]} 36... Rxe2 {[%clk 0:00:07.3]} 37. Qh3 {[%clk 0:00:12.6]}
37... Rce8 {[%clk 0:00:03.2]} 38. Bxd4 {[%clk 0:00:11.3]} 38... Rh2+ {[%clk
0:00:03.7]} 39. Qxh2 {[%clk 0:00:12.2]} 39... Qxh2+ {[%clk 0:00:05.6]} 40. Kxh2
{[%clk 0:00:14.1]} 40... Bxd4 {[%clk 0:00:07.4]} 41. g7+ {[%clk 0:00:15.1]}
41... Kg8 {[%clk 0:00:08.4]} 42. Rg6 {[%clk 0:00:16.7]} 42... Bxa7 {[%clk
0:00:09.2]} 43. Rxh6 {[%clk 0:00:17.6]} 43... Re2+ {[%clk 0:00:10.2]} 44. Kg3
{[%clk 0:00:18.9]} 44... Kxg7 {[%clk 0:00:12.1]} 45. Ra6 {[%clk 0:00:20.3]}
45... Re3+ {[%clk 0:00:13.5]} 46. Kf2 {[%clk 0:00:21.7]} 46... Bd4 {[%clk
0:00:12.9]} 47. Kf1 {[%clk 0:00:21.4]} 47... Rxd3 {[%clk 0:00:13.7]} 48. Ra5
{[%clk 0:00:22.5]} 48... Rf3+ {[%clk 0:00:14.5]} 49. Ke2 {[%clk 0:00:22.3]}
49... Rxf4 {[%clk 0:00:16.4]} 50. Kd3 {[%clk 0:00:23.8]} 50... Bf6 {[%clk
0:00:14.3]} 51. Ke3 {[%clk 0:00:23.9]} 1

[Event "Open Nuevo Centro. Jornada 2"]
[Site "Chess.com"]
[Date "2020.06.26"]
[Round "2"]
[White "Remolar Gallen, Jose"]
[Black "Gracia Calvo, Andrés"]
[Result "1-0"]
[WhiteElo "2354"]
[BlackElo "1821"]
[TimeControl "180+2"]
[EndTime "10:51:59 PDT"]
[Termination "Victoria de ChessMonguer por jaque mate"]

1. d4 {[%clk 0:03:01.9]} 1... d5 {[%clk 0:03:00.4]} 2. c4 {[%clk 0:03:02.6]}
2... c6 {[%clk 0:03:01.3]} 3. Nf3 {[%clk 0:03:02.4]} 3... e6 {[%clk 0:03:02]} 4.
Nc3 {[%clk 0:03:03.9]} 4... f5 {[%clk 0:03:03.4]} 5. Bg5 {[%clk 0:03:01.2]} 5...
Nf6 {[%clk 0:03:04.2]} 6. e3 {[%clk 0:02:59.7]} 6... Be7 {[%clk 0:03:04.7]} 7.
Be2 {[%clk 0:03:00.4]} 7... O-O {[%clk 0:03:05]} 8. Qc2 {[%clk 0:03:00.6]} 8...
Ne4 {[%clk 0:03:05.6]} 9. Bxe7 {[%clk 0:03:00.9]} 9... Qxe7 {[%clk 0:03:06.6]}
10. O-O {[%clk 0:02:51.9]} 10... b6 {[%clk 0:03:06.4]} 11. Rab1 {[%clk
0:02:48.5]} 11... Bb7 {[%clk 0:03:06.6]} 12. b4 {[%clk 0:02:47.4]} 12... Nd7
{[%clk 0:03:06.1]} 13. a4 {[%clk 0:02:40.5]} 13... Rac8 {[%clk 0:03:05.9]} 14.
c5 {[%clk 0:02:40.3]} 14... e5 {[%clk 0:03:00.7]} 15. Rfd1 {[%clk 0:02:15.2]}
15... Nxc3 {[%clk 0:02:50.7]} 16. Qxc3 {[%clk 0:02:17.1]} 16... e4 {[%clk
0:02:51.5]} 17. Ne5 {[%clk 0:02:17.9]} 17... Nxe5 {[%clk 0:02:49.1]} 18. dxe5
{[%clk 0:02:19.8]} 18... f4 {[%clk 0:02:39.5]} 19. Qd4 {[%clk 0:02:02.7]} 19...
Qg5 {[%clk 0:02:21.8]} 20. Bf1 {[%clk 0:01:57.2]} 20... fxe3 {[%clk 0:02:18.8]}
21. fxe3 {[%clk 0:01:53.7]} 21... Qf5 {[%clk 0:01:45.9]} 22. cxb6 {[%clk
0:01:48.4]} 22... Qf2+ {[%clk 0:01:39.9]} 23. Kh1 {[%clk 0:01:44.9]} 23... axb6
{[%clk 0:01:39.6]} 24. Qxb6 {[%clk 0:01:44.7]} 24... Rb8 {[%clk 0:01:31]} 25. a5
{[%clk 0:01:40.2]} 25... Bc8 {[%clk 0:01:15.3]} 26. Qxb8 {[%clk 0:01:21.9]}
26... Bh3 {[%clk 0:01:08.1]} 27. Qxf8+ {[%clk 0:01:07.6]} 27... Qxf8 {[%clk
0:01:06.6]} 28. gxh3 {[%clk 0:01:08.7]} 28... Qf3+ {[%clk 0:01:05.7]} 29. Bg2
{[%clk 0:01:09.2]} 29... Qxe3 {[%clk 0:01:06.1]} 30. a6 {[%clk 0:01:08.5]} 30...
Qb6 {[%clk 0:01:01.9]} 31. Ra1 {[%clk 0:01:09.1]} 31... Qa7 {[%clk 0:01:01.6]}
32. b5 {[%clk 0:01:02.4]} 32... cxb5 {[%clk 0:00:58.6]} 33. Rxd5 {[%clk
0:01:03.7]} 33... e3 {[%clk 0:00:59.3]} 34. Rd8+ {[%clk 0:00:44.8]} 34... Kf7
{[%clk 0:00:56.4]} 35. Bd5+ {[%clk 0:00:45.6]} 35... Kg6 {[%clk 0:00:56.3]} 36.
Rd6+ {[%clk 0:00:27.2]} 36... Kf5 {[%clk 0:00:51]} 37. e6 {[%clk 0:00:25.7]}
37... e2 {[%clk 0:00:47.3]} 38. e7 {[%clk 0:00:14.7]} 38... Qxe7 {[%clk
0:00:42.5]} 39. Re6 {[%clk 0:00:15.2]} 39... Qd7 {[%clk 0:00:38.3]} 40. Bb3
{[%clk 0:00:11.2]} 40... Qa7 {[%clk 0:00:30]} 41. Rxe2 {[%clk 0:00:11.2]} 41...
g5 {[%clk 0:00:28.4]} 42. Bc2+ {[%clk 0:00:11.3]} 42... Kf6 {[%clk 0:00:24.7]}
43. Rf1+ {[%clk 0:00:09.8]} 43... Kg7 {[%clk 0:00:24.7]} 44. Rfe1 {[%clk
0:00:10.5]} 44... Qxa6 {[%clk 0:00:25]} 45. Re7+ {[%clk 0:00:11.9]} 45... Kf8
{[%clk 0:00:24.1]} 46. Re8+ {[%clk 0:00:13.3]} 46... Kf7 {[%clk 0:00:24.4]} 47.
R1e7+ {[%clk 0:00:14.5]} 47... Kf6 {[%clk 0:00:25.1]} 48. Re2 {[%clk 0:00:06.1]}
48... Qc6+ {[%clk 0:00:24.7]} 49. Kg1 {[%clk 0:00:07.1]} 49... Qc5+ {[%clk
0:00:21.5]} 50. R8e3 {[%clk 0:00:08.2]} 50... b4 {[%clk 0:00:21]} 51. Kf1 {[%clk
0:00:09.5]} 51... Qd4 {[%clk 0:00:18.9]} 52. Rf3+ {[%clk 0:00:10.4]} 52... Kg7
{[%clk 0:00:19]} 53. Re7+ {[%clk 0:00:11.4]} 53... Kh6 {[%clk 0:00:18.8]} 54.
Rxh7# {[%clk 0:00:11.4]} 1

[Event "Open Nuevo Centro. Jornada 2"]
[Site "Chess.com"]
[Date "2020.06.26"]
[Round "2"]
[White "Gil López, Alejandro"]
[Black "Bosch Jordà, Ricard"]
[Result "1-0"]
[WhiteElo "2098"]
[BlackElo "1763"]
[TimeControl "180+2"]
[EndTime "10:52:06 PDT"]
[Termination "Victoria de AglVal0313 por abandono"]

1. e4 {[%clk 0:03:01.9]} 1... c5 {[%clk 0:02:59]} 2. Nf3 {[%clk 0:03:02.7]} 2...
Nc6 {[%clk 0:02:59.9]} 3. c3 {[%clk 0:03:03.1]} 3... Nf6 {[%clk 0:03:00]} 4. Qc2
{[%clk 0:03:02.9]} 4... d6 {[%clk 0:02:25.6]} 5. Bc4 {[%clk 0:03:03.6]} 5... g6
{[%clk 0:02:14.9]} 6. d4 {[%clk 0:03:02]} 6... cxd4 {[%clk 0:02:12.6]} 7. cxd4
{[%clk 0:03:03.9]} 7... Bg7 {[%clk 0:02:11.9]} 8. d5 {[%clk 0:03:02]} 8... Nb8
{[%clk 0:02:00.3]} 9. O-O {[%clk 0:02:55.3]} 9... O-O {[%clk 0:01:52.4]} 10. Bg5
{[%clk 0:02:52.8]} 10... Nbd7 {[%clk 0:01:45.2]} 11. Nbd2 {[%clk 0:02:48]} 11...
Ng4 {[%clk 0:01:45.3]} 12. h3 {[%clk 0:02:37.2]} 12... Nge5 {[%clk 0:01:44.6]}
13. Nxe5 {[%clk 0:02:38]} 13... Nxe5 {[%clk 0:01:46.5]} 14. f4 {[%clk
0:02:17.3]} 14... Nxc4 {[%clk 0:01:44.9]} 15. Nxc4 {[%clk 0:02:19.2]} 15... Bd7
{[%clk 0:01:36.7]} 16. Rae1 {[%clk 0:02:16]} 16... b5 {[%clk 0:01:29]} 17. Ne3
{[%clk 0:02:13.4]} 17... Qb6 {[%clk 0:01:03.1]} 18. Kh1 {[%clk 0:01:59.1]} 18...
Rfe8 {[%clk 0:00:52.1]} 19. f5 {[%clk 0:01:54.1]} 19... Rac8 {[%clk 0:00:50.4]}
20. Qb3 {[%clk 0:01:48.5]} 20... Qd4 {[%clk 0:00:39.1]} 21. Ng4 {[%clk
0:01:07.4]} 21... Qxb2 {[%clk 0:00:32.2]} 22. Qxb2 {[%clk 0:00:54.8]} 22... Bxb2
{[%clk 0:00:32.4]} 23. fxg6 {[%clk 0:00:54.5]} 23... fxg6 {[%clk 0:00:23.8]} 24.
Nh6+ {[%clk 0:00:53.8]} 24... Kh8 {[%clk 0:00:19.8]} 25. Rf7 {[%clk 0:00:54.7]}
25... Bg7 {[%clk 0:00:08.2]} 26. Ref1 {[%clk 0:00:46.6]} 26... b4 {[%clk
0:00:08.3]} 27. Rxg7 {[%clk 0:00:35.1]} 27... Kxg7 {[%clk 0:00:08.2]} 28. Rf7+
{[%clk 0:00:37]} 28... Kh8 {[%clk 0:00:08.7]} 29. Bxe7 {[%clk 0:00:38.7]} 29...
Rxe7 {[%clk 0:00:07.5]} 30. Rxe7 {[%clk 0:00:38]} 30... Bb5 {[%clk 0:00:06.1]}
31. Rxa7 {[%clk 0:00:28.2]} 31... Rc1+ {[%clk 0:00:05.9]} 32. Kh2 {[%clk
0:00:28.1]} 32... Rc2 {[%clk 0:00:05.9]} 33. Nf7+ {[%clk 0:00:26.7]} 33... Kg8
{[%clk 0:00:06.3]} 34. Nxd6 {[%clk 0:00:28.2]} 34... Bf1 {[%clk 0:00:07.6]} 35.
Kg3 {[%clk 0:00:22.4]} 35... Rxg2+ {[%clk 0:00:08]} 36. Kf4 {[%clk 0:00:23.7]}
36... Rf2+ {[%clk 0:00:07.1]} 37. Ke5 {[%clk 0:00:24.7]} 37... Bxh3 {[%clk
0:00:06.9]} 38. Nc4 {[%clk 0:00:21.1]} 38... Bg4 {[%clk 0:00:05.9]} 39. d6
{[%clk 0:00:21.4]} 39... h5 {[%clk 0:00:07]} 40. Ne3 {[%clk 0:00:19.5]} 40...
Rf8 {[%clk 0:00:02.4]} 41. Rb7 {[%clk 0:00:10.5]} 41... Re8+ {[%clk 0:00:03.1]}
42. Kd4 {[%clk 0:00:10.4]} 42... Bc8 {[%clk 0:00:03]} 43. Rxb4 {[%clk 0:00:11]}
43... h4 {[%clk 0:00:03.4]} 44. Rb2 {[%clk 0:00:09.9]} 44... h3 {[%clk
0:00:02.2]} 45. Rh2 {[%clk 0:00:11]} 45... Bb7 {[%clk 0:00:02.6]} 46. e5 {[%clk
0:00:11.6]} 46... Bg2 {[%clk 0:00:03.3]} 47. Nd5 {[%clk 0:00:12.4]} 47... g5
{[%clk 0:00:03.4]} 48. Nf6+ {[%clk 0:00:12.8]} 48... Kf7 {[%clk 0:00:04.8]} 49.
Nxe8 {[%clk 0:00:13.7]} 49... Kxe8 {[%clk 0:00:06.2]} 50. Ke3 {[%clk 0:00:14.9]}
50... g4 {[%clk 0:00:04.9]} 51. Kf2 {[%clk 0:00:15.6]} 51... Bf3 {[%clk
0:00:05.6]} 52. Kg3 {[%clk 0:00:16.3]} 52... Kd7 {[%clk 0:00:06.6]} 53. Rxh3
{[%clk 0:00:16.2]} 53... Bd5 {[%clk 0:00:04]} 54. Kxg4 {[%clk 0:00:15.2]} 54...
Be6+ {[%clk 0:00:04.9]} 55. Kg3 {[%clk 0:00:16.8]} 55... Bxh3 {[%clk 0:00:06]}
56. Kxh3 {[%clk 0:00:18.7]} 56... Ke6 {[%clk 0:00:06.9]} 57. Kg4 {[%clk
0:00:19.9]} 57... Kxe5 {[%clk 0:00:07.1]} 1